{"text_format":"1","workbook":"xlsx","n_sheets":1,"sheets":["Sheet1"],"not_rendered":{"charts":0,"images":0,"macros":1,"external_links":0,"defined_names":0,"comments":0,"pivot_tables":0},"unopened":[],"bounds":{"document_bytes":16777216,"sheet_cells":100000,"rows_first":2000,"rows_last":500,"rows_between":2000,"halvings":0,"cell_chars":16384,"cell_head_chars":4096},"cells_cut":0,"cells_raw":0,"read":"whole","date_system":"1900"}

{"sheet":"Sheet1","index":0,"n_rows":61,"n_cols":16,"rows_kept":61,"cut":false,"hidden":false,"merged":[]}
["Denis",null,null,null,null,null,null,null,null,4]
["Jovana",null,null,5]
["Nilski",null,null,null,null,null,null,null,null,null,null,null,null,null,2]
["Burence",null,null,null,null,null,3]
["Homer",5]
["Neco",null,null,null,null,null,3]
["Bijeljina",null,null,null,3]
["Poapj",null,null,3]
["Ружица",null,null,null,5]
["Душко",null,null,null,null,null,null,null,null,null,null,null,null,null,null,3]
["Gustav",null,null,null,null,null,null,null,null,null,null,null,null,null,null,2]
["Tina ",null,null,null,null,null,null,null,null,null,null,2]
["Ajfel",null,null,null,5]
["Ptica",null,null,null,null,null,null,null,null,3]
["Jabuka",null,null,null,5]
["Crvenkapa",null,null,2]
["Stop",null,null,5]
["Jag",5]
["Pink",5]
["Kip",null,null,null,null,null,null,null,null,null,null,null,null,null,5]
["Bundava",null,null,null,null,null,null,null,null,null,null,null,null,null,5]
["Lav",null,null,null,null,null,null,null,null,5]
["Tajson",null,2]
["Ćorba",null,null,null,null,null,null,null,3]
["Baja",null,2]
["Ekser",null,null,null,null,null,null,null,null,null,null,null,null,null,null,2]
["Mravi",5]
["Čizma",null,null,null,null,null,null,null,null,null,5]
["Miki",3]
["Prase",null,null,null,null,null,null,null,null,null,null,null,null,null,3]
["Salata",null,null,null,null,null,null,null,null,5]
["Kokoške",null,null,null,null,null,null,null,null,null,null,4]
["Pijetao",null,null,null,null,null,null,null,null,null,5]
["Davor",4]
["Krava",null,null,null,null,null,5]
["Petar Pan",null,null,null,null,null,null,null,3]
["Obeliks",null,null,null,null,null,null,null,null,null,null,null,null,null,5]
["Tigar",null,null,null,null,null,null,null,null,null,5]
["Oliva",null,2,null,null,null,null,null,null,null,null,null,null,null,null,3]
["Cigare",null,null,null,null,null,null,null,null,null,null,null,null,null,null,3]
["Papir",3]
["Majmun",null,5]
["Akvar",null,null,null,null,null,null,null,null,null,null,null,null,null,null,5]
[]
[null,{"$f":"SUM(B1:B44)","v":30},11,15,18,0,11,0,6,17,15,6,0,0,20,18]
[]
["Перо",{"$f":"SUM($B$1:$B$44)","v":30}]
["Дејан",{"$f":"SUM($O$1:$O$44)","v":20}]
["Јоца",{"$f":"SUM($E$1:$E$44)","v":18}]
["Игор",{"$f":"SUM($P$1:$P$44)","v":18}]
["Тијана",{"$f":"SUM($J$1:$J$44)","v":17}]
["Јеца",{"$f":"SUM($D$1:$D$44)","v":15}]
["Нешо",{"$f":"SUM($K$1:$K$44)","v":15}]
["Славко",{"$f":"SUM($G$1:$G$44)","v":11}]
["Мики",{"$f":"SUM($C$1:$C$44)","v":11}]
["Дејана",{"$f":"SUM($L$1:$L$44)","v":6}]
["Дарко",{"$f":"SUM($I$1:$I$44)","v":6}]
["Милица",{"$f":"SUM($N$1:$N$44)","v":0}]
["Оги",{"$f":"SUM($F$1:$F$44)","v":0}]
["Јана",{"$f":"SUM($H$1:$H$44)","v":0}]
["Владо",{"$f":"SUM($M$1:$M$44)","v":0}]